Cogmind - Beta 9.2 @@@ ROGUE MODE // 2019.11.24 @ 16:54:36 Player: SHADOWELITE7 Result: Destroyed by G-47 Trooper with Particle Gun Performance ------------- Evolutions (2) 1000 Regions Visited (4) 800 Robots Destroyed (38) 190 Value Destroyed (938) 938 Prototype IDs (2) 40 Alien Tech Used (0) 0 Bonus (16) 16 TOTAL SCORE: 2984 Bonus ------- High Alert Combat Kills 16 Cogmind --------- Core Integrity 0/550 Matter 30/300 Energy 100/100 System Corruption 4% Temperature Cool (9) Movement Core (550) Ox10 Location -8/Materials Parts ------- > --- POWER (2) -------- (None) > --- PROPULSION (2) --- (None) > --- UTILITY (3) ------ Large Storage Unit Large Storage Unit Advanced Signal Interpreter > --- WEAPON (4) ------- (None) > --- INVENTORY (16) --- (None) Peak State ------------ > --- POWER ------------ Light Ion Engine Light Ion Engine > --- PROPULSION ------- Improved Treads Improved Treads > --- UTILITY ---------- Medium Storage Unit Large Storage Unit Experimental Sensor Array > --- WEAPON ----------- EM Pulse Gun Rocket Launcher Rocket Launcher Hammer > --- INVENTORY -------- Large Storage Unit [Rating: 20] Favorites ----------- Power Light Ion Engine Engine Light Ion Engine Propulsion Improved Treads Treads Improved Treads Leg Aluminum Leg Utility Medium Storage Unit Device Experimental Sensor Array Storage Medium Storage Unit Processor Advanced Signal Interpreter Weapon Light Assault Rifle Energy Gun EM Pulse Gun Ballistic Gun Light Assault Rifle Ballistic Cannon Flak Cannon Launcher Rocket Launcher Impact Weapon Hammer Build | -11 -10 -9 -9 -8 ------- Run | Scr Mat Mat Min Mat Slots Evolved 4 | . . 2 . 2 Power 1 | . . 1 . . Propulsion . | . . . . . Utility 1 | . . . . 1 Weapon 2 | . . 1 . 1 Parts Attached 32 | 6 5 6 4 11 Power 4 | 1 . 1 1 1 Engine 4 | 1 . 1 1 1 Core . | . . . . . Reactor . | . . . . . Propulsion 6 | 2 1 2 . 1 Treads 5 | 2 . 2 . 1 Leg 1 | . 1 . . . Wheel . | . . . . . Hover . | . . . . . Flight . | . . . . . Utility 6 | 1 1 . 1 3 Device 1 | . . . 1 . Storage 4 | 1 1 . . 2 Processor 1 | . . . . 1 Hackware . | . . . . . Protection . | . . . . . Artifact . | . . . . . Weapon 16 | 2 3 3 2 6 Energy Gun 1 | . . . . 1 Energy Cannon . | . . . . . Ballistic Gun 7 | 2 1 3 . 1 Ballistic Cannon 1 | . . . . 1 Launcher 4 | . 2 . 1 1 Special Weapon . | . . . . . Impact Weapon 3 | . . . 1 2 Slashing Weapon . | . . . . . Piercing Weapon . | . . . . . Special Melee Weapon . | . . . . . Unidentified Prototypes 2 | . . . 1 1 Parts Lost 13 | . 2 3 . 8 Power 3 | . . 1 . 2 Propulsion 4 | . 2 . . 2 Utility . | . . . . . Weapon 6 | . . 2 . 4 Highest Loss Streak 4 | . 2 3 . 4 Average Slot Usage (%) 88 | . 92 83 91 80 Engine 13 | . 14 15 13 10 Treads 18 | . 21 6 22 14 Leg 1 | . 1 6 . . Device 4 | . . . 10 2 Storage 17 | . 26 22 11 16 Processor 1 | . . . . 7 Energy Gun 1 | . . . . 6 Ballistic Gun 22 | . 21 28 32 . Launcher 4 | . 6 4 . 11 Impact Weapon 1 | . . . . 7 Naked Turns . | . . . . . Heaviest Build 55 | 11 20 25 21 55 Greatest Support 46 | 40 40 46 46 46 Greatest Overweight (x) 13 | 1 6 6 . 13 Average Overweight (x) . | . . 1 . 1 Largest Inventory Capacity 16 | 6 10 10 10 16 Average Capacity 9 | 5 9 10 8 14 Most Carried 6 | 3 5 3 6 5 Average Carried 2 | 1 3 1 4 . Final Capacity 16 | 6 10 10 8 16 Final Carried 5 | 2 4 1 5 . Class Distribution -------------------- 41% | Skirmisher 34% | Mutant 23% | Gunner Dominant Class ---------------- Mutant | -10/Materials Gunner | -9/Materials Skirmisher | -9/Mines Gunner | -8/Materials Resources | -11 -10 -9 -9 -8 ----------- Run | Scr Mat Mat Min Mat Matter Collected 789 | 260 168 98 190 73 Remotely . | . . . . . Salvage Created 906 | . 349 122 184 251 Parts 65 | . 29 9 12 15 Haulers Intercepted 1 | . 1 . . . Recyclers Shooed 2 | . 1 . . 1 Parts Field Recycled . | . . . . . Retrieved Matter . | . . . . . Parts Self-Destructed . | . . . . . Prevented . | . . . . . Kills | -11 -10 -9 -9 -8 ------- Run | Scr Mat Mat Min Mat Combat Hostiles Destroyed 29 | . 13 3 7 6 Melee 1 | . . . . 1 Guns 15 | . 4 3 7 1 Cannons 3 | . . . . 3 AOE 10 | . 9 . . 1 Classes Destroyed 9 | . 6 2 . 1 Worker 3 | . 1 . 2 . Builder 3 | . 2 . . 1 Tunneler 1 | . . . . 1 Hauler 1 | . 1 . . . Watcher 1 | . 1 . . . Swarmer 9 | . 3 . 4 2 Grunt 13 | . 10 1 1 1 Brawler 2 | . . 1 1 . Sentry 5 | . . 1 1 3 Best Kill Streak 8 | . 8 3 4 4 Combat Bots Only 6 | . 6 3 4 3 Max Kills in Single Turn 3 | . 3 1 2 1 Gunslinging . | . . . . . Exploded 2 | . 2 . . 1 Melee 1 | . . . . 1 Uniques/NPCs Destroyed . | . . . . . Combat | -11 -10 -9 -9 -8 -------- Run | Scr Mat Mat Min Mat Damage Taken 2595 | . 562 161 340 1532 Core 669 | . 100 7 12 550 Absorbed by Shields . | . . . . . Core Remaining (%) 85 | 100 60 . 95 . Volleys Fired 75 | . 27 5 14 29 Largest 3 | . 2 3 3 3 Hottest 117 | . 50 70 73 117 Shots Fired 139 | . 49 13 42 35 Gun 89 | . 34 10 37 8 Cannon 22 | . . . . 22 Launcher 28 | . 15 3 5 5 Special . | . . . . . Kinetic 103 | . 34 10 37 22 Thermal . | . . . . . Explosive 28 | . 15 3 5 5 Electromagnetic 8 | . . . . 8 Robot Hit Streak 10 | . 6 5 10 7 Robot Miss Streak 19 | . 4 2 2 19 Penetration Max . | . . . . . Secondary Targets 2 | . . . 2 . Max Gunslinging Chain 1 | . . . 1 . Shots Hit Robots 85 | . 17 8 26 34 Core Hits 81 | . 33 7 15 26 Critical Hits . | . . . . . Critical Kills . | . . . . . Critical Parts Destroyed . | . . . . . Melee Attacks 14 | . . . 5 9 Impact 14 | . . . 5 9 Slashing . | . . . . . Piercing . | . . . . . Sneak Attacks . | . . . . . Combat Hostiles . | . . . . . Follow-up Attacks . | . . . . . Damage Inflicted 2281 | . 1106 170 358 647 Guns 632 | . 265 75 225 67 Cannons 311 | . . . . 311 Explosions 1225 | . 841 95 133 156 Melee 113 | . . . . 113 Ramming . | . . . . . Kinetic 876 | . 265 75 225 311 Thermal . | . . . . . Explosive 1153 | . 841 95 133 84 Electromagnetic 139 | . . . . 139 Impact 113 | . . . . 113 Slashing . | . . . . . Piercing . | . . . . . Highest Corruption 4 | . 1 . . 4 Average Corruption 2 | . 1 . . 3 Corruption Purged . | . . . . . Effects 3 | . . . . 3 Message Errors 1 | . . . . 1 Matter Fused 1 | . . . . 1 Parts Rejected 1 | . . . . 1 Overload Shots . | . . . . . Overflow Damage 38 | . 20 2 . 16 Projectiles . | . . . . . Explosions 38 | . 20 2 . 16 Melee . | . . . . . Knockbacks 18 | . . . . 18 Impact 1 | . . . . 1 Kinetic 15 | . . . . 15 Secondary 2 | . . . . 2 Self-Inflicted Damage 267 | . 90 41 30 106 Shots 9 | . 3 2 1 3 Rammed 1 | . . . . 1 Targets Rammed 1 | . . . . 1 Kicked . | . . . . . Crushed . | . . . . . Highest Temperature 153 | . 22 42 153 99 Average Temperature 34 | . 8 23 48 31 Received Heat Transfer 630 | . 162 42 66 360 Siege Activations . | . . . . . Robots Corrupted . | . . . . . Combat Hostiles . | . . . . . Parts Fried 1 | . . . . 1 Impact Corruptions . | . . . . . Robots Melted . | . . . . . Combat Hostiles . | . . . . . Parts Melted . | . . . . . Heat Transferred . | . . . . . Parts Sabotaged . | . . . . . Parts Stolen . | . . . . . Parts Stripped . | . . . . . Power Chain Reactions 2 | . . . . 2 Missiles Intercepted . | . . . . . Alert | -11 -10 -9 -9 -8 ------- Run | Scr Mat Mat Min Mat Peak Influence 440 | . 440 235 156 285 Average Influence 151 | . 192 216 117 174 Maximum Alert Level 2 | . 2 1 . 1 Low Security (%) 76 | 100 55 34 100 70 Level 1 18 | . 20 65 . 29 Level 2 5 | . 23 . . . Level 3 . | . . . . . Level 4 . | . . . . . Level 5 . | . . . . . High Security . | . . . . . Max Security . | . . . . . Squads Dispatched 5 | . 4 . . 1 Investigation 3 | . 3 . . . Extermination . | . . . . . Reinforcement 2 | . 1 . . 1 Assault . | . . . . . Garrison . | . . . . . Intercept . | . . . . . Construction Impeded 1 | . . . . 1 Haulers Reinforced . | . . . . . Stealth | -11 -10 -9 -9 -8 --------- Run | Scr Mat Mat Min Mat Distress Signals 4 | . 2 1 . 1 Communications Jammed . | . . . . . Distress Signals . | . . . . . Times Spotted 46 | . 18 5 8 15 Peak Tracking Total 8 | . 6 5 4 8 Tactical Retreats 1 | . . 1 . . Traps | -11 -10 -9 -9 -8 ------- Run | Scr Mat Mat Min Mat Traps Triggered . | . . . . . Indirectly . | . . . . . Trap Hack Attempts . | . . . . . Triggered . | . . . . . Disarmed . | . . . . . Reprogrammed . | . . . . . Reused . | . . . . . Traps Extracted . | . . . . . Installed . | . . . . . Triggered . | . . . . . Machines | -11 -10 -9 -9 -8 ---------- Run | Scr Mat Mat Min Mat Machines Disabled 6 | . 1 . 2 3 Max in Single Turn 2 | . 1 . 1 2 Machines Sabotaged . | . . . . . Garrisons Compromised . | . . . . . Overloaded Fab Kills . | . . . . . Fab Network Shutdowns . | . . . . . Hacking | -11 -10 -9 -9 -8 --------- Run | Scr Mat Mat Min Mat Machines Accessed 4 | . 4 . . . Terminals 4 | . 4 . . . Fabricators . | . . . . . Repair Stations . | . . . . . Recycling Units . | . . . . . Scanalyzers . | . . . . . Garrison Access . | . . . . . Total Hacks 11 | . 11 . . . Successful 6 | . 6 . . . Failed 5 | . 5 . . . Catastrophic 2 | . 2 . . . Database Lockouts . | . . . . . Manual . | . . . . . Terminals 11 | . 11 . . . Fabricators . | . . . . . Repair Stations . | . . . . . Recycling Units . | . . . . . Scanalyzers . | . . . . . Garrison Access . | . . . . . Terminal Hacks 6 | . 6 . . . Record 5 | . 5 . . . Robot Analysis 1 | . 1 . . . Fabricator Hacks . | . . . . . Repair Station Hacks . | . . . . . Recycling Unit Hacks . | . . . . . Scanalyzer . | . . . . . Garrison Access Hacks . | . . . . . Unauthorized Hacks . | . . . . . Terminals . | . . . . . Fabricators . | . . . . . Repair Stations . | . . . . . Recycling Units . | . . . . . Scanalyzers . | . . . . . Garrison Access . | . . . . . Data Cores Recovered . | . . . . . Used . | . . . . . Hacking Detections 4 | . 4 . . . Full Trace Events 4 | . 4 . . . Feedback Events 1 | . 1 . . . Corruption 1 | . 1 . . . Feedback Blocked . | . . . . . Robot Schematics Acquired . | . . . . . Robots Built . | . . . . . Matter . | . . . . . Time . | . . . . . Total Robot Build Rating . | . . . . . Part Schematics Acquired . | . . . . . Parts Built . | . . . . . Matter . | . . . . . Time . | . . . . . Total Part Build Rating . | . . . . . Parts Repaired . | . . . . . Time . | . . . . . Parts Recycled . | . . . . . Recycled Matter . | . . . . . Retrieved Matter . | . . . . . Retrieved Components . | . . . . . Parts Scanalyzed . | . . . . . Part Schematics Acquired . | . . . . . Parts Damaged . | . . . . . Bothacking | -11 -10 -9 -9 -8 ------------ Run | Scr Mat Mat Min Mat Used RIF Installer . | . . . . . Robots Hacked . | . . . . . Non-combat . | . . . . . Combat . | . . . . . Robot Hacks Applied . | . . . . . Relay Couplers Released . | . . . . . Robots Rewired . | . . . . . Allies Hacked . | . . . . . Hacks Repelled . | . . . . . Allies | -11 -10 -9 -9 -8 -------- Run | Scr Mat Mat Min Mat Total Allies . | . . . . . Largest Group . | . . . . . Highest-Rated Group . | . . . . . Highest-Rated Ally . | . . . . . Total Orders . | . . . . . Ally Attacks . | . . . . . Total Damage . | . . . . . Kills . | . . . . . Allies Corrupted . | . . . . . Allies Melted . | . . . . . Intel | -11 -10 -9 -9 -8 ------- Run | Scr Mat Mat Min Mat Robot Analysis Total 1 | . 1 . . . Derelict Logs Recovered 1 | . . . 1 . Drone Launches . | . . . . . Drone Recoveries . | . . . . . Exploration | -11 -10 -9 -9 -8 ------------- Run | Scr Mat Mat Min Mat Turns Passed 1722 | 85 378 192 706 361 Spaces Moved 860 | 54 171 100 402 133 Core 32 | 15 11 2 . 4 Treads 748 | 39 139 39 402 129 Legs 80 | . 21 59 . . Wheels . | . . . . . Hover . | . . . . . Flight . | . . . . . Fastest Speed 50 | 50 150 150 160 152 Average Speed 165 | 134 170 168 160 187 Slowest Speed 700 | 160 350 350 160 700 Overloaded Moves . | . . . . . Propulsion Burnouts . | . . . . . Robots Hopped . | . . . . . Cave-ins Triggered 2 | . 1 . . 1 Exploration Rate (%) 25 | 4 35 12 59 16 Regions Visited 4 Branch Regions 1 Pre-discovered Areas . | . . . . . Known Exits Taken . | . . . . . Unknown Exits Taken 4 | 1 1 1 1 . Scrap Searched . | . . . . . Spaces Dug 12 | . 7 . 4 1 Terrain Destroyed 189 | . 73 24 44 48 Melee 5 | . . . 4 1 Projectile . | . . . . . AOE 184 | . 73 24 40 47 Actions | -11 -10 -9 -9 -8 --------- Run | Scr Mat Mat Min Mat Total 1021 | 67 207 114 433 200 Wait . | . . . . . Move 855 | 53 170 99 401 132 Hop . | . . . . . Pick Up 28 | 8 4 3 6 7 Fast Attach . | . . . . . Attach 30 | 6 3 6 4 11 Detach 4 | . 1 . 2 1 Swap 2 | . 2 . . . Drop 11 | . . 1 1 9 Fire 75 | . 27 5 14 29 Melee 14 | . . . 5 9 Ram 1 | . . . . 1 Kick . | . . . . . Crush . | . . . . . Escape Stasis 1 | . . . . 1 Rewire . | . . . . . Trap . | . . . . . Miscellaneous . | . . . . . Route ------- -11/Scrapyard -10/Materials -9/Materials -9/Mines -8/Materials History --------- Turn | Location | Event 11 | -11/Scrapyard | Discovered new exit (range 16) 86 | -11/Scrapyard | Entered Materials 302 | -10/Materials | Crushed by falling debris 315 | -10/Materials | Build established: Mutant 428 | -10/Materials | Discovered new exit (range 15) 464 | -10/Materials | Entered another Materials area 464 | -9/Materials | Evolved 2 slots: Power x1, Weapon x1 569 | -9/Materials | Lost 3 parts (1p2w) 635 | -9/Materials | Discovered new exit (range 6) 656 | -9/Materials | Entered Mines 704 | -9/Mines | Found a damaged Exp. Sensor Array with a note attached 707 | -9/Mines | Found Prototype Device 709 | -9/Mines | Identified Exp. Sensor Array 811 | -9/Mines | Received a Rocket Launcher from a helpful Derelict 996 | -9/Mines | Build established: Skirmisher 1276 | -9/Mines | Discovered new exit (range 8) 1362 | -9/Mines | Entered Materials 1362 | -8/Materials | Evolved 2 slots: Utility x1, Weapon x1 1578 | -8/Materials | Crushed by falling debris 1675 | -8/Materials | Lost 4 parts (1p1n2w) 1694 | -8/Materials | Core integrity fell below 50% 1713 | -8/Materials | Core integrity fell below 20% 1723 | -8/Materials | Destroyed by G-47 Trooper with Particle Gun Last Messages --------------- 01668_ K-01 Serf collects debris. 01670_ Acquired 8 matter. 01671_ R-06 Scavenger collects Flight Unit. 01671_ Acquired 5 matter. 01673_ K-01 Serf collects debris. 01674_ R-06 Scavenger collects Flight Unit. 01677_ K-01 Serf collects debris. 01677_ Imp. Treads destroyed. 01678_ R-06 Scavenger collects Lgt. Ion Engine. 01681_ K-01 Serf collects debris. 01683_ Flak Cannon destroyed. 01683_ U-05 Engineer lays Concrete. 01691_ K-01 Serf collects debris. 01696_ G-47 Trooper destroyed. 01698_ G-47 Trooper knocked back. 01699_ K-01 Serf collects debris. 01715_ System corrupted: Hammer rejected. 01719_ Slammed into S-10 Pest. 01719_ Destabilizing: System interference. 01719_ Adv. Signal Interpreter temporarily disabled. Map ----- +----------------------------------------------------+ | ?????????????????????????????????????????????????? | | ?????????????????????????????????????????????????? | | ?????????????????????????????????????????????????? | | ?????????????????????????????????????????????????? | | ?????????????????????????????????????????????????? | | ?????????????????????????????????????????????????? | | ?????????????????????????????????????????????????? | | ?????????????????????????????????????????????????? | | ?????????????????????????????????????????????????? | | ?????????????????????????????????????????????????? | | ??????????????????????#######????????????????????? | | ??????????????????????# = ##???????????????????? | | ??????????????????????# ????????????????????? | | ??????????????????????# = ????????????????????? | | ??????????????????????# !% ?????????????????????? | | ??????????????????????# ?###?????????????????? | | ???????????????????????# u##########????????????? | | ???????????????????????#*%!# "" #????????????? | | ???????????????????????# | # """"" #????????????? | | ???????????????????????# + """" #????????????? | | ???????????????????????# # """ #????????????? | | ???????????????????????# # """ #????????????? | | ?????????# #######+##### # #????????????? | | ?????????# ^ # #????????????? | | ?????????+ gk s # #????????????? | | ?????????# k % /@ # ##???????????? | | ??????????# """ ####################?????????? | | ????????????? """ ??????????????## #?????????? | | ??????????????""" ??????????????## # ###????????? | | ?????????????? ???????????????# ## ##???????? | | ???????????? ????????????????# # # #???????? | | ???????????? ????????????????## ## ###???????? | | ???????????????????????????????# #???????? | | ???????????????????????????????## #???????? | | ??????????????????????????????### #???????? | | ??????????????????????????????# #???????? | | ??????????????????????????????# # #???????? | | ??????????????????????????????# * #???????? | | ??????????????????????????????# #???????? | | ??????????????????????????????# # %#???????? | | ??????????????????????????????### #???????? | | ????????????????????????????????########+######### | | ????????????????????????? | | ????????????????????????? | | ????????????????????????? | | ??????????????????????????#####+################## | | ?????????????????????????????????????????????????? | | ?????????????????????????????????????????????????? | | ?????????????????????????????????????????????????# | | ?????????????????????????????????????????????????# | +----------------------------------------------------+ Best States ------------- Heat Dissipation 31 Energy Generation 17 Energy Capacity 290 Matter Stores 300 Matter Capacity 300 Sight Range 16 Robot Scan Range 30 Terrain Scan Density 10 Evasion (%) 40 Recoil Reduction 2 Item Schematics ----------------- None Robot Schematics ------------------ None Fabricated ------------ Nothing Alien Tech Used ----------------- None Achievements -------------- None Challenges ------------ None Game ------ Seed NodeRagnarokDevice Manual? 0 Play Time 00:26:59 Cumulative 14.4 hours Start 2019.11.22 @ 11:24:40 End 2019.11.24 @ 16:54:36 Sessions 3 Manual Loads 0 Difficulty Rogue Special Mode None Game No. 60 Rogue 57 Adventurer 0 Explorer 3 Win Type - Total 0 Types 0/0/0/0/0/0/0 Lore% 19 Gallery% 15 Achievement% 16 Wizard Run 0 Options --------- ASCII 0 Keyboard 0 Movement Arrows Keybinds 0 Fullscreen 1 Font 18/SmallcapsGlow Map View 76x50 Tactical HUD 1 Map Filters NONE Filters NONE Steam 1 RUN: 4e245499-d764-4f60-9e5b-638361ac6f27